fUSD/lending_fUSD_20250120
["ID","MTS","AMOUNT","RATE_DAILY","PERIOD"]
[349661371,1737361843928,-500.0,0.00020043,2]
[349661373,1737361843937,-1377.19,0.00020043,2]
[349661374,1737361843946,-500.0,0.00020043,2]
[349661375,1737361843956,-500.0,0.00020043,2]
[349661376,1737361843966,-916.23,0.00020043,2]
[349661377,1737361843975,-533.95,0.00020043,2]
[349661378,1737361843984,-500.0,0.00020043,2]
[349661379,1737361843993,-2451.32,0.00020043,2]
[349661380,1737361844003,-3016.86,0.00020043,2]
[349661381,1737361844012,-500.0,0.00020043,2]
[349661382,1737361844021,-2858.83,0.00020043,2]
[349661383,1737361844030,-500.0,0.00020044,2]
[349661384,1737361844040,-500.0,0.00020044,2]
[349661385,1737361844049,-500.0,0.00020044,2]
[349661386,1737361844059,-500.0,0.00020044,2]
[349661387,1737361844067,-500.0,0.00020044,2]
[349661388,1737361844077,-572.56915713,0.00020044,2]
[349661389,1737361844086,-500.0,0.00020044,2]
[349661390,1737361844096,-500.0,0.00020044,2]
[349661391,1737361844108,-599.87,0.00020044,2]
[349661392,1737361844118,-242.00170093,0.00020044,2]
[349661393,1737361844128,-500.0,0.00020044,2]
[349661394,1737361844142,-500.0,0.00020044,2]
[349661395,1737361844152,-871.83,0.00020044,2]
[349661396,1737361844163,-500.0,0.00020044,2]
[349661397,1737361844172,-500.0,0.00020044,2]
[349661398,1737361844183,-500.0,0.00020044,2]
[349661399,1737361844193,-441.57,0.00020044,2]
[349661400,1737361844202,-320.44443844,0.00020044,2]
[349661401,1737361844212,-200.0800848,0.00020044,2]
[349661402,1737361844221,-541.14,0.00020044,2]
[349661403,1737361844230,-500.0,0.00020044,2]
[349661404,1737361844241,-5606.64,0.00020044,2]
[349661405,1737361844251,-581.8,0.00020044,2]
[349661406,1737361844263,-1000.14,0.00020044,2]
[349661407,1737361844272,-2957.5,0.00020044,2]
[349661408,1737361844281,-500.0,0.00020044,2]
[349661409,1737361844292,-1092.31,0.00020044,2]
[349661410,1737361844302,-1533.23,0.00020044,2]
[349661411,1737361844312,-1811.79,0.00020044,2]
[349661412,1737361844321,-616.88,0.00020044,2]
[349661413,1737361844330,-1224.3,0.00020044,2]
[349661414,1737361844340,-500.0,0.00020044,2]
[349661415,1737361844349,-500.0,0.00020044,2]
[349661416,1737361844362,-500.0,0.00020044,2]
[349661417,1737361844372,-500.0,0.00020044,2]
[349661418,1737361844381,-2395.22,0.00020044,2]
[349661419,1737361844391,-500.0,0.00020044,2]
[349661420,1737361844400,-500.0,0.00020044,2]
[349661421,1737361844410,-1306.82,0.00020044,2]
[349661422,1737361844419,-500.0,0.00020044,2]
[349661423,1737361844429,-500.0,0.00020044,2]
[349661424,1737361844439,-500.0,0.00020044,2]
[349661425,1737361844448,-584.74,0.00020045,2]
[349661426,1737361844457,-500.0,0.00020045,2]
[349661427,1737361844465,-500.0,0.00020045,2]
[349661428,1737361844474,-684.19,0.00020045,2]
[349661429,1737361844484,-500.0,0.00020045,2]
[349661430,1737361844493,-500.0,0.00020045,2]
[349661431,1737361844502,-500.0,0.00020045,2]
[349661432,1737361844511,-657.74,0.00020045,2]
[349661433,1737361844520,-500.0,0.00020045,2]
[349661434,1737361844530,-531.84,0.00020045,2]
[349661435,1737361844539,-500.0,0.00020045,2]
[349661436,1737361844548,-500.0,0.00020045,2]
[349661437,1737361844557,-500.0,0.00020045,2]
[349661438,1737361844566,-500.0,0.00020045,2]
[349661439,1737361844575,-500.0,0.00020045,2]
[349661440,1737361844584,-500.0,0.00020045,2]
[349661441,1737361844593,-500.0,0.00020045,2]
[349661442,1737361844604,-500.0,0.00020045,2]
[349661443,1737361844614,-500.0,0.00020045,2]
[349661444,1737361844623,-407.27023133,0.00020045,2]
[349661445,1737361844635,-515.64,0.00020045,2]
[349661446,1737361844645,-895.39,0.00020045,2]
[349661447,1737361844655,-1145.99,0.00020045,2]
[349661448,1737361844665,-1210.51,0.00020045,2]
[349661449,1737361844674,-771.98,0.00020045,2]
[349661450,1737361844780,-528.36,0.00020045,2]
[349661451,1737361844790,-565.8,0.00020045,2]
[349661452,1737361844801,-500.0,0.00020045,2]
[349661453,1737361844811,-756.5,0.00020045,2]
[349661454,1737361844821,-500.0,0.00020045,2]
[349661455,1737361844830,-607.21568461,0.00020045,2]
[349661456,1737361844840,-774.06,0.00020045,2]
[349661457,1737361844850,-500.0,0.00020045,2]
[349661458,1737361844860,-598.64,0.00020045,2]
[349661459,1737361844870,-762.8,0.00020045,2]
[349661460,1737361844879,-855.34,0.00020045,2]
[349661461,1737361844889,-500.0,0.00020045,2]
[349661462,1737361844898,-500.0,0.00020045,2]
[349661463,1737361844907,-500.0,0.00020045,2]
[349661464,1737361844916,-500.0,0.00020045,2]
[349661465,1737361844926,-500.0,0.00020045,2]
[349661466,1737361844935,-632.15,0.00020045,2]
[349661467,1737361844945,-500.0,0.00020045,2]
[349661468,1737361844955,-500.0,0.00020045,2]
[349661469,1737361844964,-500.0,0.00020045,2]
[349661470,1737361844974,-737.6,0.00020045,2]
[349661471,1737361844983,-500.0,0.00020045,2]
[349661472,1737361844993,-500.0,0.00020045,2]
[349661473,1737361845002,-500.0,0.00020045,2]
[349661474,1737361845011,-520.66,0.00020045,2]
[349661475,1737361845021,-910.08,0.00020045,2]
[349661476,1737361845030,-500.0,0.00020045,2]
[349661477,1737361845038,-500.0,0.00020045,2]
[349661478,1737361845047,-708.44,0.00020045,2]
[349661479,1737361845057,-584.29,0.00020045,2]
[349661480,1737361845066,-500.0,0.00020045,2]
[349661481,1737361845075,-773.14,0.00020045,2]
[349661482,1737361845083,-500.0,0.00020045,2]
[349661483,1737361845093,-986.41,0.00020045,2]
[349661484,1737361845104,-597.48,0.00020045,2]
[349661485,1737361845113,-1422.12,0.00020045,2]
[349661486,1737361845124,-817.22,0.00020045,2]
[349661487,1737361845136,-615.99,0.00020045,2]
[349661488,1737361845145,-514.67,0.00020045,2]
[349661489,1737361845154,-772.97,0.00020082,2]
[349661490,1737361845163,-772.97,0.00020082,2]
[349661491,1737361845173,-772.97,0.00020082,2]
[349661493,1737361845182,-772.97,0.00020082,2]
[349661494,1737361845191,-229.66813706,0.00020107,2]
[349661495,1737361845201,-2037.36,0.00020145,2]
[349661496,1737361845211,-975.55534,0.0002015,2]
[349661498,1737361845220,-274.38343009,0.00020165,2]
[349661499,1737361845230,-229.66813706,0.00020176,2]
[349661501,1737361845239,-425.80543622,0.00020184,2]
[349661503,1737361845248,-975.55534,0.0002021,2]
[349661504,1737361845258,-183.99891704,0.00020216,2]
[349661506,1737361845267,-500.0,0.00020216,2]
[349661508,1737361845276,-816.43,0.00020216,2]
[349661509,1737361845285,-1000.0,0.00020218,2]
[349661511,1737361845295,-229.66813706,0.00020245,2]
[349661512,1737361845303,-975.55534,0.0002028,2]
[349661513,1737361845313,-249.4,0.00020297,2]
[349661514,1737361845322,-179.438524,0.00020307,2]
[349661515,1737361845331,-229.66813706,0.00020314,2]
[349661516,1737361845340,-829289.31423833,0.00020316,2]
[349661517,1737361845349,-500.0,0.00020317,2]
[349661519,1737361845361,-216.86027105,0.00020317,2]
[349661520,1737361845370,-500.0,0.00020317,2]
[349661522,1737361845380,-500.0,0.00020317,2]
[349661523,1737361845389,-500.0,0.00020317,2]
[349661524,1737361845398,-500.0,0.00020317,2]
[349661525,1737361845407,-500.0,0.00020317,2]
[349661526,1737361845416,-500.0,0.00020317,2]
[349661527,1737361845426,-500.0,0.00020317,2]
[349661528,1737361845435,-650.47,0.00020317,2]
[349661529,1737361845443,-500.0,0.00020317,2]
[349661530,1737361845453,-621.36,0.00020317,2]
[349661531,1737361845462,-663.13,0.00020317,2]
[349661532,1737361845471,-500.0,0.00020317,2]
[349661533,1737361845481,-500.0,0.00020317,2]
[349661534,1737361845489,-565.317825,0.00020317,2]
[349661535,1737361845498,-1191.141328,0.00020317,2]
[349661536,1737361845508,-500.0,0.00020317,2]
[349661537,1737361845517,-500.0,0.00020317,2]
[349661538,1737361845525,-500.0,0.00020317,2]
[349661539,1737361845535,-500.0,0.00020317,2]
[349661540,1737361845544,-656.35,0.00020317,2]
[349661541,1737361845553,-500.0,0.00020317,2]
[349661542,1737361845563,-795.08,0.00020317,2]
[349661543,1737361845571,-970.02,0.00020317,2]
[349661544,1737361845581,-500.0,0.00020317,2]
[349661545,1737361845590,-691.02,0.00020317,2]
[349661546,1737361845599,-500.0,0.00020317,2]
[349661547,1737361845611,-893.53,0.00020317,2]
[349661548,1737361845620,-500.0,0.00020317,2]
[349661549,1737361845630,-593.43,0.00020317,2]
[349661550,1737361845639,-500.0,0.00020317,2]
[349661551,1737361845648,-1123.39,0.00020317,2]
[349661552,1737361845660,-500.0,0.00020317,2]
[349661553,1737361845670,-579.34,0.00020317,2]
[349661554,1737361845679,-844.48,0.00020317,2]
[349661555,1737361845689,-1090.23,0.00020317,2]
[349661556,1737361845698,-820.58,0.00020317,2]
[349661557,1737361845707,-500.0,0.00020317,2]
[349661558,1737361845717,-787.81,0.00020317,2]
[349661559,1737361845727,-1186.73,0.00020317,2]
[349661560,1737361845736,-774.07,0.00020317,2]
[349661561,1737361845745,-1283.85,0.00020317,2]
[349661562,1737361845753,-746.38,0.00020317,2]
[349661563,1737361845763,-500.0,0.00020317,2]
[349661564,1737361845773,-1540.96,0.00020317,2]
[349661565,1737361845783,-601.92,0.00020317,2]
[349661566,1737361845792,-714.72,0.00020317,2]
[349661567,1737361845802,-3147.24,0.00020317,2]
[349661568,1737361845812,-500.0,0.00020317,2]
[349661570,1737361845821,-887.53,0.00020317,2]
[349661572,1737361845831,-1919.96,0.00020317,2]
[349661574,1737361845840,-1408.13,0.00020317,2]
[349661576,1737361845850,-500.0,0.00020317,2]
[349661578,1737361845862,-1415.81,0.00020317,2]
[349661580,1737361845871,-500.0,0.00020317,2]
[349661583,1737361845887,-500.0,0.00020317,2]
[349661585,1737361845896,-1392.71,0.00020317,2]
[349661587,1737361845906,-3987.41,0.00020317,2]
[349661589,1737361845915,-634.32,0.00020317,2]
[349661591,1737361845924,-705.8,0.00020317,2]
[349661593,1737361845933,-1079.86,0.00020317,2]
[349661595,1737361845943,-500.0,0.00020317,2]
[349661597,1737361845952,-1453.19,0.00020317,2]
[349661599,1737361845961,-500.0,0.00020317,2]
[349661601,1737361845971,-626.73,0.00020317,2]
[349661603,1737361845980,-1685.41,0.00020317,2]
[349661605,1737361845989,-504.21,0.00020317,2]
[349661607,1737361845999,-500.0,0.00020317,2]
[349661609,1737361846010,-163.329348,0.00020317,2]
[349661611,1737361846019,-721.37,0.00020317,2]
[349661613,1737361846028,-500.0,0.00020317,2]
[349661615,1737361846037,-500.0,0.00020317,2]
[349661617,1737361846047,-4119.46,0.00020317,2]
[349661619,1737361846055,-746.72,0.00020317,2]
[349661621,1737361846066,-835.04,0.00020317,2]
[349661623,1737361846075,-1170.74,0.00020317,2]
[349661625,1737361846084,-920.84,0.00020317,2]
[349661627,1737361846093,-982.11,0.00020317,2]
[349661629,1737361846102,-2517.08,0.00020317,2]
[349661631,1737361846113,-810.73,0.00020317,2]
[349661633,1737361846121,-2588.62,0.00020317,2]
[349661635,1737361846132,-752.0,0.00020317,2]
[349661636,1737361846142,-668.2,0.00020317,2]
[349661638,1737361846151,-1348.09,0.00020317,2]
[349661640,1737361846160,-1475.17,0.00020317,2]
[349661642,1737361846170,-1288.73,0.00020317,2]
[349661644,1737361846181,-1298.32,0.00020317,2]
[349661646,1737361846190,-500.0,0.00020317,2]
[349661648,1737361846199,-500.0,0.00020317,2]
[349661650,1737361846208,-500.0,0.00020317,2]
[349661653,1737361846220,-1579.22,0.00020317,2]
[349661655,1737361846229,-500.0,0.00020317,2]
[349661657,1737361846238,-1139.38,0.00020317,2]
[349661659,1737361846247,-1484.65,0.00020317,2]
[349661660,1737361846256,-500.0,0.00020317,2]
[349661661,1737361846264,-3293.61,0.00020317,2]
[349661662,1737361846273,-500.0,0.00020317,2]
[349661663,1737361846282,-1617.0,0.00020317,2]
[349661664,1737361846291,-500.0,0.00020317,2]
[349661665,1737361846300,-558.87,0.00020317,2]
[349661666,1737361846309,-578.94,0.00020317,2]
[349661667,1737361846318,-500.0,0.00020317,2]
[349661669,1737361846328,-872.45,0.00020317,2]
[349661671,1737361846337,-503.25,0.00020317,2]
[349661673,1737361846347,-1187.73,0.00020317,2]
[349661675,1737361846359,-649.01,0.00020317,2]
[349661687,1737361846463,-735.75,0.00020317,2]
[349661689,1737361846473,-2029.29,0.00020317,2]
[349661691,1737361846483,-2628.84,0.00020317,2]
[349661693,1737361846491,-893.07,0.00020317,2]
[349661695,1737361846500,-500.0,0.00020317,2]
[349661697,1737361846509,-1748.8,0.00020317,2]
[349661699,1737361846519,-1177.12,0.00020317,2]
[349661701,1737361846528,-500.0,0.00020317,2]
[349661703,1737361846537,-560.01,0.00020317,2]
[349661705,1737361846546,-500.0,0.00020317,2]
[349661707,1737361846555,-1435.4,0.00020317,2]
[349661709,1737361846566,-673.83,0.00020317,2]
[349661711,1737361846576,-590.19,0.00020317,2]
[349661713,1737361846585,-500.0,0.00020317,2]
[349661715,1737361846595,-500.0,0.00020317,2]
[349661717,1737361846607,-1481.47,0.00020317,2]
[349661719,1737361846617,-500.0,0.00020317,2]
[349661721,1737361846627,-1306.79,0.00020317,2]
[349661723,1737361846636,-879.03,0.00020317,2]
[349661725,1737361846646,-338.11809925,0.00020317,2]
[349661727,1737361846656,-620.82,0.00020317,2]
[349661729,1737361846665,-1490.84,0.00020317,2]
[349661731,1737361846675,-1002.92,0.00020317,2]
[349661733,1737361846684,-2404.1,0.00020317,2]
[349661735,1737361846693,-500.0,0.00020317,2]
[349661737,1737361846702,-1377.19,0.00020317,2]
[349661739,1737361846711,-500.0,0.00020317,2]
[349661741,1737361846720,-533.95,0.00020317,2]
[349661743,1737361846730,-916.23,0.00020317,2]
[349661745,1737361846739,-500.0,0.00020317,2]
[349661747,1737361846749,-2451.32,0.00020317,2]
[349661749,1737361846758,-3016.86,0.00020317,2]
[349661751,1737361846767,-500.0,0.00020317,2]
[349661753,1737361846778,-200.0,0.00020318,2]
[349661755,1737361846788,-500.0,0.00020318,2]
[349661757,1737361846797,-500.0,0.00020318,2]
[349661759,1737361846807,-318.39679173,0.00020318,2]
[349661761,1737361846816,-500.0,0.00020318,2]
[349661763,1737361846825,-453.13394462,0.00020318,2]
[349661765,1737361846835,-500.0,0.00020318,2]
[349661767,1737361846845,-204.90952584,0.00020318,2]
[349661769,1737361846857,-323.81720339,0.00020318,2]
[349661771,1737361846866,-500.0,0.00020318,2]
[349661773,1737361846876,-500.0,0.00020318,2]
[349661775,1737361846885,-500.0,0.00020318,2]
[349661777,1737361846894,-500.0,0.00020318,2]
[349661779,1737361846903,-500.0,0.00020318,2]
[349661781,1737361846913,-500.0,0.00020318,2]
[349661783,1737361846923,-500.0,0.00020318,2]
[349661785,1737361846932,-500.0,0.00020318,2]
[349661787,1737361846941,-500.0,0.00020318,2]
[349661789,1737361846952,-599.87,0.00020318,2]
[349661791,1737361846961,-500.0,0.00020318,2]
[349661793,1737361846970,-500.0,0.00020318,2]
[349661795,1737361846980,-500.0,0.00020318,2]
[349661797,1737361846990,-500.0,0.00020318,2]
[349661799,1737361847000,-500.0,0.00020318,2]
[349661801,1737361847010,-500.0,0.00020318,2]
[349661803,1737361847020,-500.0,0.00020318,2]
[349661805,1737361847029,-517.5939595,0.00020318,2]
[349661807,1737361847038,-871.83,0.00020318,2]
[349661809,1737361847047,-500.0,0.00020318,2]
[349661811,1737361847057,-500.0,0.00020318,2]
[349661813,1737361847066,-500.0,0.00020318,2]
[349661815,1737361847075,-541.14,0.00020318,2]
[349661817,1737361847085,-500.0,0.00020318,2]
[349661819,1737361847094,-500.0,0.00020318,2]
[349661821,1737361847103,-500.0,0.00020318,2]
[349661823,1737361847111,-500.0,0.00020318,2]
[349661825,1737361847120,-500.0,0.00020318,2]
[349661827,1737361847132,-500.0,0.00020318,2]
[349661829,1737361847143,-5606.64,0.00020318,2]
[349661831,1737361847152,-500.0,0.00020318,2]
[349661833,1737361847161,-581.8,0.00020318,2]
[349661835,1737361847173,-500.0,0.00020318,2]
[349661837,1737361847182,-500.0,0.00020318,2]
[349661839,1737361847191,-516.18212685,0.00020318,2]
[349661841,1737361847200,-1000.14,0.00020318,2]
[349661843,1737361847211,-500.0,0.00020318,2]
[349661845,1737361847220,-2957.5,0.00020318,2]
[349661847,1737361847230,-500.0,0.00020318,2]
[349661849,1737361847239,-500.0,0.00020318,2]
[349661851,1737361847248,-1092.31,0.00020318,2]
[349661853,1737361847257,-1004.144,0.00020318,2]
[349661854,1737361847267,-1533.23,0.00020318,2]
[349661855,1737361847276,-500.0,0.00020318,2]
[349661856,1737361847286,-1811.79,0.00020318,2]
[349661857,1737361847295,-616.88,0.00020318,2]
[349661858,1737361847305,-500.0,0.00020318,2]
[349661859,1737361847314,-500.0,0.00020318,2]
[349661861,1737361847324,-1224.3,0.00020318,2]
[349661863,1737361847333,-378.82207857,0.00020318,2]
[349661865,1737361847342,-339.24576233,0.00020318,2]
[349661867,1737361847352,-500.0,0.00020318,2]
[349661869,1737361847362,-500.0,0.00020318,2]
[349661871,1737361847371,-500.0,0.00020318,2]
[349661873,1737361847380,-2395.22,0.00020318,2]
[349661874,1737361847389,-357.73412678,0.00020318,2]
[349661876,1737361847398,-1306.82,0.00020318,2]
[349661878,1737361847407,-500.0,0.00020318,2]
[349661881,1737361847416,-500.0,0.00020318,2]
[349661883,1737361847426,-500.0,0.00020318,2]
[349661885,1737361847435,-412.78044229,0.00020318,2]
[349661887,1737361847444,-317.8570847,0.00020318,2]
[349661889,1737361847455,-500.0,0.00020318,2]
[349661891,1737361847463,-500.0,0.00020318,2]
[349661893,1737361847473,-584.74,0.00020319,2]
[349661895,1737361847482,-500.0,0.00020319,2]
[349661896,1737361847491,-500.0,0.00020319,2]
[349661899,1737361847500,-684.19,0.00020319,2]
[349661900,1737361847509,-500.0,0.00020319,2]
[349661902,1737361847518,-285.93035026,0.00020319,2]
[349661904,1737361847528,-500.0,0.00020319,2]
[349661906,1737361847537,-657.74,0.00020319,2]
[349661908,1737361847546,-500.0,0.00020319,2]
[349661910,1737361847555,-531.84,0.00020319,2]
[349661912,1737361847564,-500.0,0.00020319,2]
[349661915,1737361847574,-500.0,0.00020319,2]
[349661917,1737361847583,-500.0,0.00020319,2]
[349661919,1737361847592,-500.0,0.00020319,2]
[349661921,1737361847602,-500.0,0.00020319,2]
[349661922,1737361847613,-500.0,0.00020319,2]
[349661924,1737361847622,-500.0,0.00020319,2]
[349661927,1737361847632,-500.0,0.00020319,2]
[349661929,1737361847641,-515.64,0.00020319,2]
[349661931,1737361847650,-895.39,0.00020319,2]
[349661933,1737361847659,-1145.99,0.00020319,2]
[349661935,1737361847668,-1210.51,0.00020319,2]
[349661937,1737361847678,-771.98,0.00020319,2]
[349661938,1737361847688,-528.36,0.00020319,2]
[349661940,1737361847696,-565.8,0.00020319,2]
[349661942,1737361847705,-500.0,0.00020319,2]
[349661945,1737361847715,-756.5,0.00020319,2]
[349661947,1737361847724,-500.0,0.00020319,2]
[349661949,1737361847732,-774.06,0.00020319,2]
[349661951,1737361847741,-500.0,0.00020319,2]
[349661952,1737361847755,-598.64,0.00020319,2]
[349661954,1737361847764,-762.8,0.00020319,2]
[349661955,1737361847773,-855.34,0.00020319,2]
[349661956,1737361847782,-500.0,0.00020319,2]
[349661958,1737361847792,-500.0,0.00020319,2]
[349661959,1737361847801,-500.0,0.00020319,2]
[349661961,1737361847810,-500.0,0.00020319,2]
[349661962,1737361847819,-500.0,0.00020319,2]
[349661964,1737361847828,-632.15,0.00020319,2]
[349661965,1737361847837,-500.0,0.00020319,2]
[349661967,1737361847846,-500.0,0.00020319,2]
[349661968,1737361847855,-500.0,0.00020319,2]
[349661970,1737361847867,-737.6,0.00020319,2]
[349661971,1737361847876,-500.0,0.00020319,2]
[349661973,1737361847885,-406.28813886,0.00020319,2]
[349661974,1737361847894,-500.0,0.00020319,2]
[349661976,1737361847904,-520.66,0.00020319,2]
[349661977,1737361847914,-910.08,0.00020319,2]
[349661979,1737361847923,-500.0,0.00020319,2]
[349661986,1737361847932,-500.0,0.00020319,2]
[349661988,1737361848034,-708.44,0.00020319,2]
[349661990,1737361848044,-584.29,0.00020319,2]
[349661991,1737361848053,-500.0,0.00020319,2]
[349661993,1737361848063,-773.14,0.00020319,2]
[349661994,1737361848072,-500.0,0.00020319,2]
[349661996,1737361848081,-986.41,0.00020319,2]
[349661998,1737361848090,-597.48,0.00020319,2]
[349661999,1737361848099,-1422.12,0.00020319,2]
[349662001,1737361848111,-817.22,0.00020319,2]
[349662002,1737361848120,-615.99,0.00020319,2]
[349662004,1737361848131,-514.67,0.00020319,2]
[349662006,1737361848144,-600.0,0.00020356,2]
[349662008,1737361848153,-500.0,0.00020356,2]
[349662009,1737361848163,-743.51,0.00020356,2]
[349662011,1737361848174,-150.0,0.00020356,2]
[349662013,1737361848184,-975.55534,0.0002036,2]
[349662014,1737361848193,-357.20758559,0.00020373,2]
[349662016,1737361848203,-500.0,0.00020373,2]
[349662017,1737361848213,-229.66813706,0.00020383,2]
[349662019,1737361848223,-274.38343009,0.00020413,2]
[349662021,1737361848231,-975.55534,0.0002044,2]
[349662022,1737361848241,-154.22328552,0.00020442,2]
[349662024,1737361848251,-229.66813706,0.00020452,2]
[349662026,1737361848260,-500.0,0.0002049,2]
[349662027,1737361848270,-500.0,0.0002049,2]
[349662029,1737361848279,-816.43,0.0002049,2]
[349662030,1737361848289,-975.55535,0.0002052,2]
[349662032,1737361848298,-229.66813706,0.00020521,2]
[349662034,1737361848308,-200.0,0.00020521,2]
[349662035,1737361848316,-229.66813706,0.0002059,2]
[349662037,1737361848326,-500.0,0.00020591,2]
[349662039,1737361848335,-500.0,0.00020591,2]
[349662041,1737361848346,-500.0,0.00020591,2]
[349662043,1737361848355,-500.0,0.00020591,2]
[349662045,1737361848366,-500.0,0.00020591,2]
[349662047,1737361848376,-500.0,0.00020591,2]
[349662049,1737361848385,-500.0,0.00020591,2]
[349662050,1737361848394,-500.0,0.00020591,2]
[349662053,1737361848404,-650.47,0.00020591,2]
[349662054,1737361848414,-500.0,0.00020591,2]
[349662056,1737361848423,-621.36,0.00020591,2]
[349662058,1737361848433,-663.13,0.00020591,2]
[349662059,1737361848442,-311.07881244,0.00020591,2]
[349662060,1737361848451,-500.0,0.00020591,2]
[349662061,1737361848460,-565.317825,0.00020591,2]
[349662062,1737361848470,-1191.141328,0.00020591,2]
[349662063,1737361848480,-500.0,0.00020591,2]
[349662064,1737361848489,-500.0,0.00020591,2]
[349662065,1737361848498,-500.0,0.00020591,2]
[349662066,1737361848507,-500.0,0.00020591,2]
[349662067,1737361848516,-656.35,0.00020591,2]
[349662068,1737361848525,-500.0,0.00020591,2]
[349662069,1737361848534,-795.08,0.00020591,2]
[349662070,1737361848543,-970.02,0.00020591,2]
[349662071,1737361848552,-500.0,0.00020591,2]
[349662072,1737361848561,-691.02,0.00020591,2]
[349662073,1737361848571,-500.0,0.00020591,2]
[349662074,1737361848579,-893.53,0.00020591,2]
[349662075,1737361848587,-500.0,0.00020591,2]
[349662077,1737361848597,-593.43,0.00020591,2]
[349662078,1737361848609,-500.0,0.00020591,2]
[349662080,1737361848618,-1123.39,0.00020591,2]
[349662082,1737361848628,-500.0,0.00020591,2]
[349662084,1737361848637,-579.34,0.00020591,2]
[349662085,1737361848646,-844.48,0.00020591,2]
[349662087,1737361848656,-1090.23,0.00020591,2]
[349662089,1737361848666,-820.58,0.00020591,2]
[349662091,1737361848676,-500.0,0.00020591,2]
[349662093,1737361848686,-787.81,0.00020591,2]
[349662095,1737361848695,-1186.73,0.00020591,2]
[349662097,1737361848704,-774.07,0.00020591,2]
[349662099,1737361848716,-1283.85,0.00020591,2]
[349662102,1737361848728,-746.38,0.00020591,2]
[349662105,1737361848747,-500.0,0.00020591,2]
[349662108,1737361848764,-1540.96,0.00020591,2]
[349662110,1737361848783,-601.92,0.00020591,2]
[349662113,1737361848802,-714.72,0.00020591,2]
[349662116,1737361848817,-3147.24,0.00020591,2]
[349662119,1737361848834,-500.0,0.00020591,2]
[349662121,1737361848852,-887.53,0.00020591,2]
[349662124,1737361848873,-1919.96,0.00020591,2]
[349662127,1737361848892,-1408.13,0.00020591,2]
[349662130,1737361848909,-500.0,0.00020591,2]
[349662133,1737361848927,-1415.81,0.00020591,2]
[349662136,1737361848945,-500.0,0.00020591,2]
[349662138,1737361848960,-500.0,0.00020591,2]
[349662141,1737361848972,-1392.71,0.00020591,2]
[349662144,1737361848991,-3987.41,0.00020591,2]
[349662146,1737361849003,-634.32,0.00020591,2]
[349662149,1737361849021,-705.8,0.00020591,2]
[349662151,1737361849033,-1079.86,0.00020591,2]
[349662154,1737361849046,-500.0,0.00020591,2]
[349662156,1737361849061,-1453.19,0.00020591,2]
[349662159,1737361849076,-500.0,0.00020591,2]
[349662161,1737361849090,-626.73,0.00020591,2]
[349662164,1737361849105,-1685.41,0.00020591,2]
[349662166,1737361849122,-504.21,0.00020591,2]
[349662169,1737361849140,-500.0,0.00020591,2]
[349662171,1737361849154,-721.37,0.00020591,2]